Cogmind - Beta 13 --- EXPLORER MODE // 2024.03.17 @ 14:07:36 // Winter2019/RPGLIKE Player: SmallBrainBigPP Result: Destroyed 0b10! Performance ------------- Evolutions (9) 4500 Regions Visited (15) 3000 Robots Destroyed (252) 1260 Value Destroyed (11359) 11359 Prototype IDs (36) 720 Alien Tech Used (6) 1200 Bonus (16436) 16436 TOTAL SCORE: 38475 Bonus ------- High Alert Combat Kills 131 Follower Combat Kills 105 Entered Garrisons 200 Entered DSFs 500 Used Core Reset Matrix 3000 Scanned by Researcher 500 Acquired SGEMP 2000 Met Sigix 2000 Escaped with Sigix 5000 Win 3000 Cogmind --------- Core Integrity 759/1000 Matter 675/700 Energy 79/300 System Corruption 2% Temperature Cool (2) Movement Flying (42) Location Tau Ceti IV Orbit Parts ------- > --- POWER (2) -------- Improved Fusion Compressor > --- PROPULSION (4) --- Impulse Thruster Array Impulse Thruster Array > --- UTILITY (10) ----- Advanced Signal Interpreter Long-range Terrain Scanner Experimental Core Analyzer Nanoactuators Advanced Transmission Jammer Advanced Phase Shifter SHELL Armor Improved Remote Shield > --- WEAPON (4) ------- Sigix Broadsword > --- INVENTORY (2) ---- Sigix Containment Pod Peak State ------------ > --- POWER ------------ Improved Fusion Compressor Reinforced Quantum Reactor > --- PROPULSION ------- Impulse Thruster Array Impulse Thruster Array > --- UTILITY ---------- Advanced Signal Interpreter Long-range Terrain Scanner Experimental Core Analyzer Nanoactuators Advanced Transmission Jammer Advanced Phase Shifter SHELL Armor Improved Remote Shield > --- WEAPON ----------- Sigix Broadsword > --- INVENTORY -------- Sigix Containment Pod [Rating: 160] Favorites ----------- Power Light Nuclear Core Engine Ion Engine Power Core Light Nuclear Core Reactor Reinforced Quantum Reactor Propulsion Improved VTOL Module Treads Light Treads Hover Unit Aerolev Unit Flight Unit Improved VTOL Module Utility Melee Analysis Suite Device Shield Generator Storage Small Matter Pod Processor Melee Analysis Suite Hackware Hacking Suite Protection Light Armor Plating Weapon Katana Ballistic Gun Light Assault Rifle Special Weapon Advanced Remote Datajack Impact Weapon Heavy Hammer Slashing Weapon Katana Piercing Weapon Plasma Lance Special Melee Weapon Improved Datajack Build | -11 -10 -9 -8 -8 -7 -6 -5 -5 -4 -3 -3 -3 -2 -2 -1 ------- Run | Yrd Mat Mat Mat Sto Fac Fac Fac DSF Fac Res Tes Gar Res Qua Acc Slots Evolved 16 | 4 . 5 2 2 2 . . . 1 . . . . . . Power 1 | . . . . 1 . . . . . . . . . . . Propulsion 3 | 1 . . 1 . 1 . . . . . . . . . . Utility 9 | 2 . 3 1 1 1 . . . 1 . . . . . . Weapon 3 | 1 . 2 . . . . . . . . . . . . . Parts Attached 159 | 8 5 17 10 7 6 14 . 13 9 1 11 6 1 16 35 Power 17 | 1 1 . 2 3 . 2 . . 2 . . . 1 2 3 Engine 5 | 1 . . 1 1 . . . . . . . . . 2 . Core 9 | . 1 . 1 2 . 2 . . 2 . . . 1 . . Reactor 3 | . . . . . . . . . . . . . . . 3 Propulsion 25 | 2 2 . 7 2 1 . . 3 . . . . . . 8 Treads 2 | 2 . . . . . . . . . . . . . . . Leg . | . . . . . . . . . . . . . . . . Wheel . | . . . . . . . . . . . . . . . . Hover 1 | . . . 1 . . . . . . . . . . . . Flight 22 | . 2 . 6 2 1 . . 3 . . . . . . 8 Utility 97 | 3 . 12 1 2 5 10 . 9 7 1 7 5 . 12 23 Device 47 | . . 2 . . 2 5 . 6 5 . 4 2 . 6 15 Storage 1 | . . . . . . . . . . . . . . 1 . Processor 17 | 1 . 3 1 . 1 1 . . . 1 . . . 3 6 Hackware 1 | . . . . . . . . . . . . . . . 1 Protection 31 | 2 . 7 . 2 2 4 . 3 2 . 3 3 . 2 1 Artifact . | . . . . . . . . . . . . . . . . Weapon 20 | 2 2 5 . . . 2 . 1 . . 4 1 . 2 1 Energy Gun . | . . . . . . . . . . . . . . . . Energy Cannon . | . . . . . . . . . . . . . . . . Ballistic Gun 2 | 2 . . . . . . . . . . . . . . . Ballistic Cannon . | . . . . . . . . . . . . . . . . Launcher . | . . . . . . . . . . . . . . . . Special Weapon 1 | . . . . . . . . . . . . . . 1 . Impact Weapon 2 | . 2 . . . . . . . . . . . . . . Slashing Weapon 7 | . . 3 . . . 1 . . . . 1 . . 1 1 Piercing Weapon 4 | . . . . . . . . . . . 3 1 . . . Special Melee Weapon 4 | . . 2 . . . 1 . 1 . . . . . . . Unidentified Prototypes 9 | . . . 3 1 . . . . . . 4 . . 1 . Parts Lost . | . . . . . . . . . . . . . . . . Power . | . . . . . . . . . . . . . . . . Propulsion . | . . . . . . . . . . . . . . . . Utility . | . . . . . . . . . . . . . . . . Weapon . | . . . . . . . . . . . . . . . . Highest Loss Streak . | . . . . . . . . . . . . . . . . To Critical Strikes . | . . . . . . . . . . . . . . . . Average Slot Usage (%) 84 | . 90 98 100 100 100 94 94 92 84 85 80 59 55 53 56 Core 7 | . 7 8 6 9 10 10 10 10 10 10 9 5 5 5 5 Flight 14 | . 7 16 18 18 19 21 21 19 10 10 10 10 10 10 9 Device 18 | . . 12 13 11 10 13 26 27 32 35 32 14 20 18 24 Processor 12 | . 12 10 19 18 20 19 15 13 10 10 10 9 5 5 6 Protection 11 | . 25 23 13 13 15 13 5 5 4 5 5 9 10 9 5 Impact Weapon 1 | . 15 5 . . . . . . . . . . . . . Slashing Weapon 9 | . . 13 20 18 15 10 10 10 10 10 2 . . . 5 Piercing Weapon 1 | . . . . . . . . . . . 5 5 5 4 . Special Melee Weapon 4 | . . 6 6 5 5 5 5 5 5 5 5 4 . . . Naked Turns . | . . . . . . . . . . . . . . . . Heaviest Build 75 | 13 17 24 27 29 34 50 40 49 49 49 70 70 70 75 64 Greatest Support 77 | 40 40 23 30 30 35 40 40 60 60 60 65 70 70 75 77 Greatest Overweight (x) 1 | . . 1 1 . . 1 . 1 . . 1 1 . 1 1 Average Overweight (x) . | . . . . . . . . . . . . . . . . Largest Inventory Capacity 2 | . . 1 1 1 2 2 2 2 2 2 2 2 2 2 2 Average Capacity 1 | . . . 1 1 1 2 2 2 2 2 2 2 2 2 2 Most Carried 2 | . . 1 1 1 2 2 2 2 2 2 2 2 2 2 2 Average Carried 1 | . . . 1 1 1 1 2 1 2 2 1 1 1 1 2 Final Capacity 2 | . . 1 1 1 2 2 2 2 2 2 2 2 2 2 2 Final Carried 2 | . . 1 1 1 2 2 2 2 2 2 2 2 2 2 2 Class Distribution -------------------- 40% | Hacker-Scout 34% | Hacker-Ninja 11% | Hacker-Gladiator 6% | Hacker-Mutant 4% | Hacker-Assassin Dominant Class ---------------- Hacker-Gladiator | -10/Materials Hacker-Gladiator | -9/Materials Hacker-Scout | -8/Materials Hacker-Scout | -8/Storage Hacker-Scout | -7/Factory Hacker-Scout | -6/Factory Hacker-Ninja | -5/Factory Hacker-Ninja | -5/DSF Hacker-Ninja | -4/Factory Hacker-Ninja | -3/Research Hacker-Ninja | -3/Testing Hacker-Assassin | -3/Garrison Hacker-Scout | -2/Research Hacker-Scout | -2/Quarantine Hacker-Ninja | -1/Access Resources | -11 -10 -9 -8 -8 -7 -6 -5 -5 -4 -3 -3 -3 -2 -2 -1 ----------- Run | Yrd Mat Mat Mat Sto Fac Fac Fac DSF Fac Res Tes Gar Res Qua Acc Matter Collected 4544 | 280 76 170 100 80 60 140 . 90 132 . 129 50 661 720 1856 Remotely . | . . . . . . . . . . . . . . . . Salvage Created 11402 | . 481 1237 1191 682 1081 296 70 534 1063 14 1297 534 277 830 1815 Parts 633 | . 10 56 72 52 58 16 3 37 54 3 67 25 17 41 122 Haulers Intercepted 13 | . 2 2 3 3 . . . . 2 . . . 1 . . Recyclers Shooed 1 | . . . . . . . . . . . . . . 1 . Parts Field Recycled . | . . . . . . . . . . . . . . . . Retrieved Matter . | . . . . . . . . . . . . . . . . Parts Self-Destructed . | . . . . . . . . . . . . . . . . Prevented . | . . . . . . . . . . . . . . . . Kills | -11 -10 -9 -8 -8 -7 -6 -5 -5 -4 -3 -3 -3 -2 -2 -1 ------- Run | Yrd Mat Mat Mat Sto Fac Fac Fac DSF Fac Res Tes Gar Res Qua Acc Combat Hostiles Destroyed 183 | . 8 23 17 16 16 3 . 11 14 1 18 10 3 6 37 Melee 172 | . 2 18 17 16 16 3 . 11 14 1 18 10 3 6 37 Guns 2 | . 2 . . . . . . . . . . . . . . Classes Destroyed 19 | . 6 5 . . 2 . . 3 . . 2 . . 1 . Worker 9 | . 4 . 1 . 1 . . . . 1 1 . . 1 . Builder 4 | . . 2 1 . . . . . . . . . . 1 . Tunneler 2 | . 1 1 . . . . . . . . . . . . . Hauler 13 | . 2 2 3 3 . . . . 2 . . . 1 . . Recycler 10 | . . 1 4 . . . . . . . . . . 3 2 Operator 10 | . . 3 1 1 1 . . . . . 1 . . 1 2 Drone 10 | . . . . . . . . . . . . . . 3 7 Watcher 28 | . 3 4 5 2 3 1 2 . 3 . 2 . . 2 1 Swarmer 26 | . 2 5 8 2 3 . . . . . . . . . 6 Cutter 5 | . . . . . . . . 3 2 . . . . . . Grunt 50 | . 6 7 2 4 5 . . 3 6 . 3 7 . . 7 Brawler 4 | . . . . . 3 . . . . . . 1 . . . Duelist 3 | . . 1 . . . . . . . . . 1 . . 1 Researcher 3 | . . . . . . . . . . . 2 . . 1 . Sentry 40 | . . 10 7 10 4 2 . . . 1 3 . . . 3 Hunter 18 | . . . . . . . . 4 4 . 4 . . . 6 Programmer 24 | . . . . . 1 1 . . 2 . 6 1 3 3 7 Heavy 1 | . . . . . . . . 1 . . . . . . . Striker 2 | . . . . . . . . . . . 2 . . . . Best Kill Streak 8 | . 5 6 8 6 3 1 1 5 4 2 6 5 3 7 4 Combat Bots Only 6 | . 2 6 3 4 3 1 . 5 3 1 6 5 3 3 4 Max Kills in Single Turn 2 | . 1 1 1 1 2 1 1 1 1 1 1 1 1 1 1 Gunslinging . | . . . . . . . . . . . . . . . . Exploded . | . . . . . . . . . . . . . . . . Melee 2 | . 1 1 1 1 2 1 . 1 1 1 1 1 1 1 1 Uniques/NPCs Destroyed . | . . . . . . . . . . . . . . . . Combat | -11 -10 -9 -8 -8 -7 -6 -5 -5 -4 -3 -3 -3 -2 -2 -1 -------- Run | Yrd Mat Mat Mat Sto Fac Fac Fac DSF Fac Res Tes Gar Res Qua Acc Hostile Shots Fired 1520 | . 31 127 50 42 118 40 . 131 152 6 338 115 10 90 270 Missed 694 | . 8 32 20 13 43 18 . 52 77 5 168 53 3 43 159 Damage Taken 7951 | . 184 492 150 194 365 85 . 1085 602 10 1787 867 100 497 1533 Core 4857 | . 98 236 86 112 198 54 . 771 411 8 1221 430 36 228 968 Absorbed by Shields 2132 | . . 162 72 88 152 38 . 376 232 4 408 . . 142 458 Redirected to Core 4189 | . 65 192 53 102 163 36 . 660 360 8 1006 371 36 207 930 Ignored by Resistances 5893 | . 119 431 142 171 334 82 . 834 492 9 1306 501 61 377 1034 Regen/Repaired (Parts) 1360 | . . . . . . . . . . . 166 388 76 239 491 Core Remaining (%) 90 | 100 100 96 . 100 95 86 . 87 100 . . 91 . 60 75 Volleys Fired 13 | . 13 . . . . . . . . . . . . . . Largest 2 | . 2 . . . . . . . . . . . . . . Hottest 40 | . 40 . . . . . . . . . . . . . . Shots Fired 26 | . 26 . . . . . . . . . . . . . . Gun 26 | . 26 . . . . . . . . . . . . . . Cannon . | . . . . . . . . . . . . . . . . Launcher . | . . . . . . . . . . . . . . . . Special . | . . . . . . . . . . . . . . . . Kinetic 26 | . 26 . . . . . . . . . . . . . . Thermal . | . . . . . . . . . . . . . . . . Explosive . | . . . . . . . . . . . . . . . . Electromagnetic . | . . . . . . . . . . . . . . . . Robot Hit Streak 14 | . 14 . . . . . . . . . . . . . . Robot Miss Streak 1 | . 1 . . . . . . . . . . . . . . Penetration Max . | . . . . . . . . . . . . . . . . Secondary Targets . | . . . . . . . . . . . . . . . . Shots Hit Robots 701 | . 52 82 59 55 57 10 6 41 56 3 96 39 14 31 100 Core Hits 257 | . 7 24 28 21 26 4 1 14 23 1 31 21 5 12 39 Critical Kills . | . . . . . . . . . . . . . . . . Critical Parts Destroyed 7 | . 4 3 . . . . . . . . . . . . . Critical Strikes 82 | . 4 7 6 7 9 1 . 3 13 . 13 3 . 7 9 Smash 7 | . 4 3 . . . . . . . . . . . . . Sever 54 | . . 4 6 7 9 1 . 3 13 . 2 . . . 9 Impale 21 | . . . . . . . . . . . 11 3 . 7 . Melee Attacks 882 | . 38 94 82 94 72 16 6 48 65 8 102 63 20 52 122 Impact 80 | . 38 42 . . . . . . . . . . . . . Slashing 588 | . . 51 82 94 72 16 6 48 65 8 19 . . 5 122 Piercing 212 | . . . . . . . . . . . 83 62 20 47 . Sneak Attacks 60 | . 7 8 11 7 5 1 . . 3 1 5 1 2 4 5 Combat Hostiles 10 | . . . . 2 4 . . . 1 . . 1 1 . 1 Follow-up Attacks 71 | . 2 8 9 12 14 2 2 6 7 . 9 . . . . Damage Inflicted 38308 | . 1825 3196 2533 2281 2139 613 341 2225 3665 227 6450 2031 845 1821 8116 Guns 180 | . 180 . . . . . . . . . . . . . . Cannons . | . . . . . . . . . . . . . . . . Explosions 68 | . . . . . . . . . . . . 68 . . . Melee 38060 | . 1645 3196 2533 2281 2139 613 341 2225 3665 227 6450 1963 845 1821 8116 Ramming . | . . . . . . . . . . . . . . . . Kinetic 180 | . 180 . . . . . . . . . . . . . . Thermal . | . . . . . . . . . . . . . . . . Explosive 68 | . . . . . . . . . . . . 68 . . . Electromagnetic . | . . . . . . . . . . . . . . . . Impact 3225 | . 1645 1580 . . . . . . . . . . . . . Slashing 25524 | . . 1616 2533 2281 2139 613 341 2225 3665 227 1369 . . 399 8116 Piercing 9311 | . . . . . . . . . . . 5081 1963 845 1422 . Highest Corruption 4 | . . . . 1 . 1 . . . . 2 4 . 3 2 Average Corruption 1 | . . . . 1 . 1 . . . . 1 1 . 1 1 Corruption Purged 3 | . . . . . . 1 . . . . 2 . . . . Corruption Blocked . | . . . . . . . . . . . . . . . . Effects 17 | . . . . 3 . 1 . . . . 3 9 . . 1 Message Errors 5 | . . . . . . . . . . . . 4 . . 1 Matter Fused 2 | . . . . 1 . . . . . . 1 . . . . Heat Flow Errors 3 | . . . . 1 . . . . . . . 2 . . . Energy Discharges 1 | . . . . . . . . . . . . 1 . . . Parts Rejected 1 | . . . . . . . . . . . 1 . . . . Data Loss (minor) 3 | . . . . 1 . 1 . . . . 1 . . . . Data Loss (major) 1 | . . . . . . . . . . . . 1 . . . Alerts 1 | . . . . . . . . . . . . 1 . . . Overload Shots . | . . . . . . . . . . . . . . . . Overflow Damage 4585 | . 725 549 248 179 82 139 80 147 225 51 575 147 156 528 754 Projectiles . | . . . . . . . . . . . . . . . . Explosions . | . . . . . . . . . . . . . . . . Melee 4585 | . 725 549 248 179 82 139 80 147 225 51 575 147 156 528 754 Knockbacks 7 | . 4 3 . . . . . . . . . . . . . Impact 7 | . 4 3 . . . . . . . . . . . . . Kinetic . | . . . . . . . . . . . . . . . . Secondary . | . . . . . . . . . . . . . . . . Self-Inflicted Damage 100 | . . . . . . . . . . . . 100 . . . Shots 1 | . . . . . . . . . . . . 1 . . . Rammed . | . . . . . . . . . . . . . . . . Targets Rammed . | . . . . . . . . . . . . . . . . Kicked . | . . . . . . . . . . . . . . . . Crushed . | . . . . . . . . . . . . . . . . Highest Temperature 303 | . 40 22 51 303 . 4 . 76 . . 5 247 5 . . Average Temperature 57 | . 15 7 13 146 . 3 . 26 . . 3 101 1 . . Received Heat Transfer 1357 | . 162 179 84 108 108 40 . 129 72 . 218 162 . 14 81 Effects 2 | . . . . 1 . . . . . . . 1 . . . Energy Bleed 1 | . . . . 1 . . . . . . . . . . . Interference 1 | . . . . . . . . . . . . 1 . . . Siege Activations . | . . . . . . . . . . . . . . . . Robots Corrupted . | . . . . . . . . . . . . . . . . Combat Hostiles . | . . . . . . . . . . . . . . . . Parts Fried 23 | . 10 13 . . . . . . . . . . . . . Impact Corruptions 47 | . 26 21 . . . . . . . . . . . . . Robots Melted . | . . . . . . . . . . . . . . . . Combat Hostiles . | . . . . . . . . . . . . . . . . Parts Melted . | . . . . . . . . . . . . . . . . Heat Transferred . | . . . . . . . . . . . . . . . . Parts Sabotaged . | . . . . . . . . . . . . . . . . Parts Stolen . | . . . . . . . . . . . . . . . . Parts Stripped . | . . . . . . . . . . . . . . . . Power Chain Reactions . | . . . . . . . . . . . . . . . . Alert | -11 -10 -9 -8 -8 -7 -6 -5 -5 -4 -3 -3 -3 -2 -2 -1 ------- Run | Yrd Mat Mat Mat Sto Fac Fac Fac DSF Fac Res Tes Gar Res Qua Acc Peak Influence 666 | . 180 454 379 409 240 132 78 390 336 54 406 666 390 178 418 Initial 280 | . . 40 61 92 11 86 47 41 151 49 22 100 280 164 45 Average 144 | . 73 180 207 131 108 80 53 164 119 28 124 291 303 53 169 Maximum Alert Level 2 | . . 2 1 2 1 . . 1 1 . 2 2 1 . 2 Low Security (%) 72 | 100 100 65 47 80 98 100 100 62 82 100 79 22 . 100 56 Level 1 25 | . . 31 52 18 1 . . 37 17 . 17 58 100 . 40 Level 2 2 | . . 3 . 1 . . . . . . 2 19 . . 2 Level 3 . | . . . . . . . . . . . . . . . . Level 4 . | . . . . . . . . . . . . . . . . Level 5 . | . . . . . . . . . . . . . . . . High Security . | . . . . . . . . . . . . . . . . Max Security . | . . . . . . . . . . . . . . . . Sterilizations 1 | . . . . . . . . 1 . . . . . . . Squads Dispatched 37 | . . 2 . 3 2 1 . 4 2 1 8 . 1 2 11 Investigation 7 | . . . . . 1 . . . . . 2 . . . 4 Extermination 12 | . . . . . 1 1 . . 1 1 2 . 1 1 4 Reinforcement 13 | . . 2 . 2 . . . 4 1 . 1 . . 1 2 Assault . | . . . . . . . . . . . . . . . . Garrison 5 | . . . . 1 . . . . . . 3 . . . 1 Intercept . | . . . . . . . . . . . . . . . . Searches Triggered . | . . . . . . . . . . . . . . . . Construction Impeded . | . . . . . . . . . . . . . . . . Haulers Reinforced . | . . . . . . . . . . . . . . . . Active Scanning Responses . | . . . . . . . . . . . . . . . . Cargo Convoy Interrupts . | . . . . . . . . . . . . . . . . Stealth | -11 -10 -9 -8 -8 -7 -6 -5 -5 -4 -3 -3 -3 -2 -2 -1 --------- Run | Yrd Mat Mat Mat Sto Fac Fac Fac DSF Fac Res Tes Gar Res Qua Acc Distress Signals 6 | . 1 2 1 1 . . . . . 1 . . . . . Communications Jammed . | . . . . . . . . . . . . . . . . Distress Signals . | . . . . . . . . . . . . . . . . Times Spotted 290 | . 14 36 24 18 20 3 2 16 19 5 31 18 3 17 64 Peak Tracking Total 10 | . 4 5 3 5 3 1 1 6 4 4 10 5 2 5 8 Tactical Retreats 28 | . . 1 3 3 1 . . 3 . . 3 3 . . 11 Traps | -11 -10 -9 -8 -8 -7 -6 -5 -5 -4 -3 -3 -3 -2 -2 -1 ------- Run | Yrd Mat Mat Mat Sto Fac Fac Fac DSF Fac Res Tes Gar Res Qua Acc Traps Triggered 14 | . . 1 . 1 2 2 . 2 . . 1 2 . 2 1 Indirectly . | . . . . . . . . . . . . . . . . Trap Hack Attempts . | . . . . . . . . . . . . . . . . Triggered . | . . . . . . . . . . . . . . . . Disarmed 6 | . . 6 . . . . . . . . . . . . . Reprogrammed . | . . . . . . . . . . . . . . . . Reused . | . . . . . . . . . . . . . . . . Traps Extracted . | . . . . . . . . . . . . . . . . Installed . | . . . . . . . . . . . . . . . . Triggered . | . . . . . . . . . . . . . . . . Machines | -11 -10 -9 -8 -8 -7 -6 -5 -5 -4 -3 -3 -3 -2 -2 -1 ---------- Run | Yrd Mat Mat Mat Sto Fac Fac Fac DSF Fac Res Tes Gar Res Qua Acc Machines Disabled 21 | . 3 . 1 2 . . . 1 . . 3 4 . 6 1 Max in Single Turn 2 | . 1 . 1 1 . . . 1 . . 1 2 . 1 1 Garrison Relay 1 | . . . . . . . . . . . . 1 . . . Phase Generator 1 | . . . . . . . . . . . . 1 . . . Machines Repaired . | . . . . . . . . . . . . . . . . Machines Dismantled . | . . . . . . . . . . . . . . . . Machines Sabotaged . | . . . . . . . . . . . . . . . . Overloaded Fab Kills . | . . . . . . . . . . . . . . . . Hacking | -11 -10 -9 -8 -8 -7 -6 -5 -5 -4 -3 -3 -3 -2 -2 -1 --------- Run | Yrd Mat Mat Mat Sto Fac Fac Fac DSF Fac Res Tes Gar Res Qua Acc Machines Accessed 72 | . 5 9 10 8 10 5 2 . 6 1 5 1 2 3 5 Terminals 64 | . 5 8 9 8 8 4 2 . 6 . 4 1 2 3 4 Fabricators 5 | . . . . . 2 1 . . . 1 . . . . 1 Repair Stations . | . . . . . . . . . . . . . . . . Recycling Units 1 | . . 1 . . . . . . . . . . . . . Scanalyzers . | . . . . . . . . . . . . . . . . Garrison Access 2 | . . . 1 . . . . . . . 1 . . . . Total Hacks 161 | . 9 25 22 23 20 12 3 . 16 2 9 1 3 4 12 Successful 97 | . 6 15 17 18 10 6 2 . 9 2 3 1 1 3 4 Failed 64 | . 3 10 5 5 10 6 1 . 7 . 6 . 2 1 8 Catastrophic 8 | . 2 . . . . . . . 1 . 1 . 1 1 2 Database Lockouts . | . . . . . . . . . . . . . . . . Manual 3 | . . . . 1 . . . . . . . . . 2 . Terminals 148 | . 9 24 21 23 17 10 3 . 16 . 8 1 3 4 9 Fabricators 10 | . . . . . 3 2 . . . 2 . . . . 3 Repair Stations . | . . . . . . . . . . . . . . . . Recycling Units 1 | . . 1 . . . . . . . . . . . . . Scanalyzers . | . . . . . . . . . . . . . . . . Garrison Access 2 | . . . 1 . . . . . . . 1 . . . . Terminal Hacks 86 | . 6 14 16 18 8 4 2 . 9 . 2 1 1 3 2 Record 8 | . . . 3 3 . . . . . . . . . 2 . Part Schematic 4 | . . . . 2 2 . . . . . . . . . . Robot Schematic 2 | . . . . . 1 . . . 1 . . . . . . Robot Analysis 4 | . . 1 2 1 . . . . . . . . . . . Prototype ID Bank 12 | . 3 2 2 2 1 1 . . 1 . . . . . . Open Door 2 | . . . . 1 . . . . . . 1 . . . . Open DSF 5 | . . . . . 2 . 1 . 1 . . . 1 . . Level Access Points 1 | . . . . . . . . . 1 . . . . . . Branch Access Points 2 | . . 1 . 1 . . . . . . . . . . . Emergency Access Points 3 | . . . 1 1 . 1 . . . . . . . . . Alert Level 5 | . . 2 2 . . 1 . . . . . . . . . Unreport Threat 10 | . . . . 3 1 . . . 3 . 1 . . 1 1 Locate Traps 12 | . . 2 3 2 1 1 1 . 1 . . . . . 1 Disarm Traps 2 | . . 2 . . . . . . . . . . . . . Dispatch Records 2 | . 1 1 . . . . . . . . . . . . . Maintenance Status 1 | . . . 1 . . . . . . . . . . . . Security Status 1 | . 1 . . . . . . . . . . . . . . Surveillance Status 1 | . . 1 . . . . . . . . . . . . . Investigation Status 1 | . 1 . . . . . . . . . . . . . . Recall Investigation 2 | . . . . 1 . . . . 1 . . . . . . Registered Prototypes 1 | . . 1 . . . . . . . . . . . . . Zone Layout 4 | . . 1 2 1 . . . . . . . . . . . Security Stations 1 | . . . . . . . . . . . . 1 . . . Fabricator Hacks 8 | . . . . . 2 2 . . . 2 . . . . 2 Load Schematic 4 | . . . . . 1 1 . . . 1 . . . . 1 Build 4 | . . . . . 1 1 . . . 1 . . . . 1 Repair Station Hacks . | . . . . . . . . . . . . . . . . Recycling Unit Hacks 1 | . . 1 . . . . . . . . . . . . . Process 1 | . . 1 . . . . . . . . . . . . . Scanalyzer . | . . . . . . . . . . . . . . . . Garrison Access Hacks 2 | . . . 1 . . . . . . . 1 . . . . Unlock Access 2 | . . . 1 . . . . . . . 1 . . . . Unauthorized Hacks . | . . . . . . . . . . . . . . . . Terminals . | . . . . . . . . . . . . . . . . Fabricators . | . . . . . . . . . . . . . . . . Repair Stations . | . . . . . . . . . . . . . . . . Recycling Units . | . . . . . . . . . . . . . . . . Scanalyzers . | . . . . . . . . . . . . . . . . Garrison Access . | . . . . . . . . . . . . . . . . Data Cores Recovered 8 | . . 2 1 . 1 . . . . . 1 . . 1 2 Used 3 | . . 1 . . 1 . . . . . . . . . 1 Hacking Detections 52 | . 4 6 6 6 9 4 . . 4 1 3 1 2 1 5 Full Trace Events 8 | . 1 . . . 1 . . . . . 2 . . . 4 Feedback Events . | . . . . . . . . . . . . . . . . Feedback Blocked . | . . . . . . . . . . . . . . . . Robot Schematics Acquired 4 | . . . . . 1 . . . 1 . 2 . . . . Robots Built 4 | . . . . . . . . . . 4 . . . . . Authchips . | . . . . . . . . . . . . . . . . Time 134 | . . . . . . . . . . 134 . . . . . Total Robot Build Rating 16 | . . . . . . . . . . 16 . . . . . Part Schematics Acquired 14 | . . . . 2 2 . . . . . 6 . . 4 . Parts Built 5 | . . . . . 2 2 . . . . . . . . 1 Authchips . | . . . . . . . . . . . . . . . . Time 301 | . . . . . 95 95 . . . . . . . . 111 Total Part Build Rating 29 | . . . . . 10 10 . . . . . . . . 9 Parts Repaired . | . . . . . . . . . . . . . . . . Time . | . . . . . . . . . . . . . . . . Parts Recycled . | . . . . . . . . . . . . . . . . Recycled Matter 35 | . . 35 . . . . . . . . . . . . . Retrieved Matter . | . . . . . . . . . . . . . . . . Retrieved Components . | . . . . . . . . . . . . . . . . Parts Scanalyzed . | . . . . . . . . . . . . . . . . Part Schematics Acquired . | . . . . . . . . . . . . . . . . Parts Damaged . | . . . . . . . . . . . . . . . . Bothacking | -11 -10 -9 -8 -8 -7 -6 -5 -5 -4 -3 -3 -3 -2 -2 -1 ------------ Run | Yrd Mat Mat Mat Sto Fac Fac Fac DSF Fac Res Tes Gar Res Qua Acc Used RIF Installer . | . . . . . . . . . . . . . . . . Robots Hacked 2 | . . 1 . . . . . . . . . 1 . . . Non-combat 1 | . . 1 . . . . . . . . . . . . . Combat 1 | . . . . . . . . . . . . 1 . . . Robot Hacks Applied 2 | . . 1 . . . . . . . . . 1 . . . parse_system 2 | . . 1 . . . . . . . . . 1 . . . Relay Couplers Released 1 | . . . . . . . . . . . . 1 . . . Machine Destruction 1 | . . . . . . . . . . . . 1 . . . Fabnet Peak Effective % . | . . . . . . . . . . . . . . . . Robots Rewired . | . . . . . . . . . . . . . . . . Allies Hacked . | . . . . . . . . . . . . . . . . Hacks Repelled . | . . . . . . . . . . . . . . . . Allies | -11 -10 -9 -8 -8 -7 -6 -5 -5 -4 -3 -3 -3 -2 -2 -1 -------- Run | Yrd Mat Mat Mat Sto Fac Fac Fac DSF Fac Res Tes Gar Res Qua Acc Total Allies 14 | . . . . 10 . . . . . 4 . . . . . Largest Group 10 | . . . . 10 . . . . . 4 . . . . . Highest-Rated Group 173 | . . . . 173 . . . . . 48 . . . . . Highest-Rated Ally 29 | . . . . 29 . . . . . 12 . . . . . Total Orders 2 | . . . . 1 . . . . . 1 . . . . . ROAM 2 | . . . . 1 . . . . . 1 . . . . . Ally Attacks 59 | . . . . 46 . . . . . 13 . . . . . Total Damage 768 | . . . . 608 . . . . . 160 . . . . . Kills 6 | . . . . 6 . . . . . . . . . . . Allies Corrupted . | . . . . . . . . . . . . . . . . Allies Melted 1 | . . . . 1 . . . . . . . . . . . Intel | -11 -10 -9 -8 -8 -7 -6 -5 -5 -4 -3 -3 -3 -2 -2 -1 ------- Run | Yrd Mat Mat Mat Sto Fac Fac Fac DSF Fac Res Tes Gar Res Qua Acc Robot Analysis Total 4 | . . 1 2 1 . . . . . . . . . . . Derelict Logs Recovered . | . . . . . . . . . . . . . . . . Drone Launches . | . . . . . . . . . . . . . . . . Drone Recoveries . | . . . . . . . . . . . . . . . . Exploration | -11 -10 -9 -8 -8 -7 -6 -5 -5 -4 -3 -3 -3 -2 -2 -1 ------------- Run | Yrd Mat Mat Mat Sto Fac Fac Fac DSF Fac Res Tes Gar Res Qua Acc Turns Passed 11588 | 64 645 1382 1037 994 1016 695 194 482 728 526 848 656 300 508 1513 Spaces Moved 11143 | 40 698 1208 1097 1006 1135 544 149 278 861 188 795 607 252 593 1692 Core 266 | 10 254 . 1 . . . . 1 . . . . . . . Treads 152 | 30 122 . . . . . . . . . . . . . . Legs . | . . . . . . . . . . . . . . . . Wheels . | . . . . . . . . . . . . . . . . Hover . | . . . . . . . . . . . . . . . . Flight 10725 | . 322 1208 1096 1006 1135 544 149 277 861 188 795 607 252 593 1692 Fastest Speed 24 | 50 37 37 29 29 26 26 26 24 37 37 37 37 37 37 37 Average Speed 41 | 132 63 57 30 29 26 27 26 29 37 37 41 74 37 41 40 Slowest Speed 160 | 160 160 117 100 29 29 96 26 100 37 37 117 117 37 117 125 Overloaded Moves . | . . . . . . . . . . . . . . . . Propulsion Burnouts . | . . . . . . . . . . . . . . . . Robots Hopped 14 | . 2 . 4 1 1 . . . . . 2 . . . 4 Cave-ins Triggered 1 | . . . . . . . . . . . . . . . 1 Teleports 1 | . . . . . . . . . . . . . . 1 . Exploration Rate (%) 47 | 4 98 96 86 89 31 13 4 97 16 7 63 62 7 40 43 Regions Visited 15 Branch Regions 3 Pre-discovered Areas . | . . . . . . . . . . . . . . . . Known Exits Taken 13 | 1 1 1 1 1 1 1 1 . 1 1 1 . 1 1 . Unknown Exits Taken . | . . . . . . . . . . . . . . . . Scrap Searched . | . . . . . . . . . . . . . . . . Spaces Dug 71 | . 1 1 8 8 3 3 . . 3 3 1 12 6 3 19 Terrain Destroyed 140 | . 1 1 8 8 3 3 . . 3 3 1 81 6 3 19 Melee 71 | . 1 1 8 8 3 3 . . 3 3 1 12 6 3 19 Projectile . | . . . . . . . . . . . . . . . . AOE 69 | . . . . . . . . . . . . 69 . . . Terrain Rammed . | . . . . . . . . . . . . . . . . Walls Destroyed . | . . . . . . . . . . . . . . . . Machines Disabled . | . . . . . . . . . . . . . . . . Actions | -11 -10 -9 -8 -8 -7 -6 -5 -5 -4 -3 -3 -3 -2 -2 -1 --------- Run | Yrd Mat Mat Mat Sto Fac Fac Fac DSF Fac Res Tes Gar Res Qua Acc Total 17034 | 47 817 1757 1698 1604 1768 1067 295 593 1157 636 1211 761 444 806 2373 Wait 4442 | . 57 423 513 507 553 451 143 196 180 441 234 30 167 116 431 Move 11097 | 39 693 1207 1088 1003 1132 543 148 277 860 187 790 604 251 592 1683 Hop 14 | . 2 . 4 1 1 . . . . . 2 . . . 4 Pick Up 23 | . . 1 . . 5 1 . 8 . . 1 4 2 1 . Fast Attach 119 | 8 5 14 8 4 2 3 . 2 3 1 9 . 1 24 35 Attach 12 | . . . . . . 1 . 4 . . . 6 . 1 . Detach 7 | . . . . . . . . . . . . 5 . 2 . Swap 37 | . . 3 2 3 4 10 . 7 6 . 2 . . . . Drop 134 | . 5 11 8 5 6 11 . 10 5 1 15 3 3 18 33 Fire 13 | . 13 . . . . . . . . . . . . . . Melee 750 | . 33 78 59 63 49 11 4 42 56 6 92 63 20 52 122 Ram . | . . . . . . . . . . . . . . . . Kick . | . . . . . . . . . . . . . . . . Crush . | . . . . . . . . . . . . . . . . Escape Stasis 95 | . . . . . . 36 . 15 . . 22 22 . . . Rewire . | . . . . . . . . . . . . . . . . Trap . | . . . . . . . . . . . . . . . . Miscellaneous 291 | . 9 20 16 18 16 . . 32 47 . 44 24 . . 65 Route ------- -11/Scrapyard -10/Materials (discovered 5 exits: *Mat x3 / *Min x2) -9/Materials (discovered 5 exits: *Mat x3 / *Min x2) -8/Materials (discovered 5 exits: *Fac x3 / *Sto / Gar) -8/Storage (discovered 2 exits: *Fac / Rec) -7/Factory (discovered 2 exits: *Fac / *Low) -6/Factory (discovered 2 exits: *Fac / *Low) -5/Factory -5/DSF -4/Factory (discovered 4 exits: *Res x4) -3/Research -3/Testing (discovered 2 exits: Res / Gar) -3/Garrison (discovered 2 exits: *Res x2) -2/Research -2/Quarantine -1/Access Tau Ceti IV Orbit History --------- Turn | Location | Event 3 | -11/Scrapyard | Identified exit to Materials 3 | -11/Scrapyard | Discovered exit to Materials (range 15) 7 | -11/Scrapyard | Upgraded with Propulsion slot (x1) 7 | -11/Scrapyard | Upgraded with Utility slot (x1) 7 | -11/Scrapyard | Upgraded with Weapon slot (x1) 17 | -11/Scrapyard | Upgraded with Utility slot (x1) 65 | -11/Scrapyard | Entered Materials 270 | -10/Materials | Identified exit to Materials 270 | -10/Materials | Discovered exit to Materials (range 15) 325 | -10/Materials | Build established: Hacker-Mutant 393 | -10/Materials | Discovered exit to Materials (range 15) 441 | -10/Materials | Identified exit to Mines 441 | -10/Materials | Discovered exit to Mines (range 15) 532 | -10/Materials | Discovered exit to Materials (range 10) 639 | -10/Materials | Build established: Hacker-Gladiator 668 | -10/Materials | Discovered exit to Mines (range 11) 710 | -10/Materials | Entered another Materials area 712 | -9/Materials | Reached level 2 712 | -9/Materials | Reached level 3 738 | -9/Materials | Upgraded with Utility slot (x1) 782 | -9/Materials | Reached level 4 794 | -9/Materials | Identified exit to Mines 868 | -9/Materials | Upgraded with Utility slot (x2) 1109 | -9/Materials | Identified exit to Materials 1109 | -9/Materials | Discovered exit to Materials (range 11) 1201 | -9/Materials | Build established: Hacker-Mutant 1288 | -9/Materials | Upgraded with Weapon slot (x1) 1290 | -9/Materials | Upgraded with Weapon slot (x1) 1453 | -9/Materials | Reached level 5 1593 | -9/Materials | Build established: Hacker-Gladiator 1891 | -9/Materials | Discovered exit to Materials (range 16) 1979 | -9/Materials | Reached level 6 1996 | -9/Materials | Discovered exit to Materials (range 16) 2092 | -9/Materials | Entered another Materials area 2094 | -8/Materials | Reached level 7 2175 | -8/Materials | Upgraded with Utility slot (x1) 2318 | -8/Materials | Upgraded with Propulsion slot (x1) 2340 | -8/Materials | Build established: Hacker-Scout 2408 | -8/Materials | Reached level 8 2489 | -8/Materials | Identified exit to Garrison 2601 | -8/Materials | Identified exit to Factory 2601 | -8/Materials | Discovered exit to Factory (range 8) 2901 | -8/Materials | Discovered exit to Factory (range 15) 2906 | -8/Materials | Identified exit to Storage 2906 | -8/Materials | Discovered exit to Storage (range 12) 3000 | -8/Materials | Reached level 9 3041 | -8/Materials | Discovered exit to Factory (range 12) 3129 | -8/Materials | Entered Storage 3382 | -8/Storage | Reached level 10 3423 | -8/Storage | Upgraded with Power slot (x1) 3615 | -8/Storage | Garrison activated, responded to threat 3657 | -8/Storage | Identified exit to Recycling 3765 | -8/Storage | Reached level 11 3800 | -8/Storage | Upgraded with Utility slot (x1) 3843 | -8/Storage | Assisted by bots powering up and referring to "LRC-V3" 3972 | -8/Storage | Discovered exit to Factory (range 15) 4123 | -8/Storage | Entered Factory 4123 | -7/Factory | Identified exit to Lower Caves 4123 | -7/Factory | Discovered exit to Lower Caves (range 9) 4125 | -7/Factory | Reached level 12 4229 | -7/Factory | Upgraded with Utility slot (x1) 4333 | -7/Factory | Reached level 13 4351 | -7/Factory | Upgraded with Propulsion slot (x1) 4485 | -7/Factory | Fabricated Adv. Terrain Scanner (x2) 4930 | -7/Factory | Identified exit to Factory 4930 | -7/Factory | Discovered exit to Factory (range 18) 5094 | -7/Factory | Reached level 14 5139 | -7/Factory | Entered another Factory area 5141 | -6/Factory | Reached level 15 5192 | -6/Factory | Identified exit to Factory 5192 | -6/Factory | Discovered exit to Factory (range 19) 5327 | -6/Factory | Identified exit to Lower Caves 5327 | -6/Factory | Discovered exit to Lower Caves (range 13) 5445 | -6/Factory | Fabricated Lgt. Fission Core (x2) 5834 | -6/Factory | Entered another Factory area 5836 | -5/Factory | Reached level 16 5930 | -5/Factory | Build established: Hacker-Ninja 6028 | -5/Factory | Identified exit to DSF 6028 | -5/Factory | Entered DSF 6028 | -5/DSF | Reached level 17 6189 | -5/DSF | Additional patrols routed to DSF 6313 | -5/DSF | Reached level 18 6314 | -5/DSF | Core integrity fell below 50% 6369 | -5/DSF | Core integrity fell below 20% 6431 | -5/DSF | Sterilization system engaged 6442 | -5/DSF | Identified exit to Factory 6442 | -5/DSF | Discovered exit to Factory (range 14) 6451 | -5/DSF | Ambient heat levels rising (+10) 6466 | -5/DSF | Ambient heat levels rising (+10) 6481 | -5/DSF | Ambient heat levels rising (+10) 6496 | -5/DSF | Ambient heat levels rising (+10) 6510 | -5/DSF | Entered Factory 6512 | -4/Factory | Reached level 19 6563 | -4/Factory | Reached level 20 6807 | -4/Factory | Identified exit to Research 6992 | -4/Factory | Reached level 21 7040 | -4/Factory | Upgraded with Utility slot (x1) 7238 | -4/Factory | Entered Research 7240 | -3/Research | Reached level 22 7265 | -3/Research | Identified exit to Testing 7265 | -3/Research | Discovered exit to Testing (range 17) 7501 | -3/Research | Fabricated S-27 Virus? 7558 | -3/Research | Lost 4 allies 7744 | -3/Research | Reached level 23 7764 | -3/Research | Entered Testing 7766 | -3/Testing | Reached level 24 7845 | -3/Testing | Found Enh. Force Lance 8128 | -3/Testing | Scanned by Researcher 8137 | -3/Testing | Identified exit to Research 8137 | -3/Testing | Discovered exit to Research (range 19) 8149 | -3/Testing | Spotted PL-SXGLMF99C3 8182 | -3/Testing | Spotted Striker 8246 | -3/Testing | Spotted Striker 8248 | -3/Testing | Destroyed Striker 8250 | -3/Testing | Spotted Alpha 7 8268 | -3/Testing | Destroyed Striker 8308 | -3/Testing | Stole the SGEMP Prototype 8308 | -3/Testing | Reached level 25 8322 | -3/Testing | Core integrity fell below 50% 8354 | -3/Testing | Found Prototype Protection 8354 | -3/Testing | Identified Med. Regenerative Plating 8371 | -3/Testing | Garrison activated, responded to threat 8395 | -3/Testing | Core integrity fell below 20% 8406 | -3/Testing | Reached level 26 8470 | -3/Testing | Found Prototype Protection 8470 | -3/Testing | Identified SHELL Armor 8567 | -3/Testing | Found Prototype Protection 8567 | -3/Testing | Identified Hvy. Regenerative Plating 8611 | -3/Testing | Identified exit to Garrison 8612 | -3/Testing | Entered Garrison 8718 | -3/Garrison | Triggered checkpoint 8746 | -3/Garrison | Garrison Relay disabled 8771 | -3/Garrison | Learned Research security intel 8854 | -3/Garrison | Build established: Hacker-Assassin 8893 | -3/Garrison | Spotted B-86 Titan 9046 | -3/Garrison | Triggered checkpoint 9062 | -3/Garrison | Discovered exit to Research (range 16) 9068 | -3/Garrison | Attempted to access garrison exit controls, blocked by remote lockdown 9109 | -3/Garrison | Reached level 27 9139 | -3/Garrison | Phase Generator disabled 9176 | -3/Garrison | Triggered checkpoint 9246 | -3/Garrison | Spotted B-86 Titan 9247 | -3/Garrison | Spotted B-86 Titan 9266 | -3/Garrison | Discovered exit to Research (range 7) 9268 | -3/Garrison | Entered Research 9270 | -2/Research | Reached level 28 9333 | -2/Research | Build established: Hacker-Scout 9558 | -2/Research | Identified exit to Quarantine 9558 | -2/Research | Discovered exit to Quarantine (range 18) 9568 | -2/Research | Entered Quarantine 9570 | -2/Quarantine | Reached level 29 9585 | -2/Quarantine | Found Alien Artifact 9585 | -2/Quarantine | Identified Core Reset Matrix 9585 | -2/Quarantine | Reached level 30 9585 | -2/Quarantine | Used Core Reset Matrix 9589 | -2/Quarantine | Detected hypermatrix surge 9589 | -2/Quarantine | Sensed 13 artifacts in vicinity 9831 | -2/Quarantine | Found Subatomic Replicator 9850 | -2/Quarantine | Found Terrabomb 9850 | -2/Quarantine | Used Terrabomb 9853 | -2/Quarantine | Found Terrabomb 9853 | -2/Quarantine | Used Terrabomb 9898 | -2/Quarantine | Met incapacitated Sigix Warrior 9898 | -2/Quarantine | Lockdown squad dispatched 9910 | -2/Quarantine | Acquired the access code to the Sigix quarantine chamber 9910 | -2/Quarantine | Unlocked Sigix quarantine chamber 9962 | -2/Quarantine | Reached level 31 10030 | -2/Quarantine | Found Dimensional Node Initializer 10030 | -2/Quarantine | Initialized slip node 10033 | -2/Quarantine | Found Dimensional Node Initializer 10033 | -2/Quarantine | Initialized slip node 10034 | -2/Quarantine | Found Dimensional Node Initializer 10034 | -2/Quarantine | Initialized slip node 10040 | -2/Quarantine | Found Hpw. Transdimensional Reconstructor 10040 | -2/Quarantine | Warped through subspace to slip node 10049 | -2/Quarantine | Identified exit to Access 10049 | -2/Quarantine | Discovered exit to Access (range 20) 10060 | -2/Quarantine | Found Sigix Broadsword 10076 | -2/Quarantine | Entered Access 10078 | -1/Access | Reached level 32 10418 | -1/Access | Reached level 33 10611 | -1/Access | Spotted B-99 Colossus 10699 | -1/Access | Garrison activated, responded to threat 10734 | -1/Access | Build established: Hacker-Ninja 10966 | -1/Access | Fabricated Exp. Core Analyzer (x1) 11501 | -1/Access | Identified exit to Surface 11501 | -1/Access | Discovered exit to Surface (range 19) 11556 | -1/Access | Reached level 34 11576 | -1/Access | Crushed by falling debris 11589 | *** | Destroyed 0b10! Last Messages --------------- 11558_ Acquired 33 matter. 11559_ Acquired 1 matter. 11559_ Destroyed Unknown Hover Unit. 11560_ U-05 Engineer builds a Wall. 11561_ P-80 Master destroyed. 11562_ K-01 Serf collects debris. 11563_ Acquired 4 matter. 11564_ Acquired 1 matter. 11568_ Connecting with Terminal... 11568_ ALERT: Suspicious activity at Terminal A001. Dispatching Investigation squad. 11576_ The unstable cave ceiling collapses. 11576_ Crushed by falling debris. 11576_ ALERT: Rogue bot located, Q-Series report to Access Zone 2M. 11580_ U-05 Engineer builds a Wall. 11581_ L7PGLS#ELYEF/0I =%D21TL|ETCBF%J0R|6YO2 11584_ ALERT: Suspicious intruders detected, dispatching Cutter reinforcements to area. 11586_ Main Access Shell breached. [Achievement: Payload Armed] Map ----- +----------------------------------------------------+ | + + ########### #### | | " " # + # # #### | | ""R"" # ############## # #### | | """"" # # # ""#= #### | | ########### # # ""# ##?# | | # # # ""# ! #### | | # # " # % T# #?## | | " # # """ #* = ""# #### | | "" # # """ # ! % ""#+##+######## | | "" # # " # % ""# # | | "" #k # # % + # | | "" # # # # # | | "" # # # # # | | "" / # ![ # ######## # | | " + + != # ######## # | | # ############## ######## # | | # ############## ######## # | | ########### ###########################?### # | | ########### u#################### ########?# # | | ########### #######"####################### + | | ########### """T"""" """" ### # | | ########### """ """" """" BB ### # | | ########### " """""" """" BB ### ## | | ########### " " " """" ? ? | | ########### " " "" " """" | | ########### " @" " """" ? | | ########### u " " " """" ??? | | ########### " """""" """" BB ###+##?## | | ########### % " """" BB ## ? | | ###########! " """" ? ## ? ? | | ###########!u#######""##################### ? ?? ? | | ###########%k######""###################### ???? | | ###!u############################## ???? | | ###!%# #################### ??? | | ###%!# #################### ?? ?? | | ###[!/ u #####??###?#####?#?#?? ???? | | ###% # ######?######?###?##??????? | | #?#= # #?###########??#?###??????? | | = ###u #? ###########?#?#?####??????? | | ### # #########?####?###????????? | | = ### # ##############?#?##???????? | | " ### H#############?#?######?##???#???????? | | """ ### ####### ###############?###?#???????? | | """ ### ######################?#?####???????? | | " ### ## ##############???#????????? | | #+######### ## ##############????????????? | | ####### # " #######??#??#?????????????? | | # "?" ?#########??##?????????????? | | +? """ ####?###?###??????????????? | | ####### # " ######??###???????????????? | +----------------------------------------------------+ Best States ------------- Heat Dissipation 55 Energy Generation 80 Energy Capacity 550 Matter Stores 700 Matter Capacity 700 Sight Range 21 Robot Scan Range 22 Terrain Scan Range 24 Terrain Scan Density 610 ECM Strength 2 Jamming Range 16 Armor Coverage 1500 Resistance: KI 35 Resistance: TH 35 Resistance: EX 35 Resistance: EM 35 Resistance: I 35 Resistance: S 35 Resistance: P 35 Point Defense Rating 240 Melee Speed Boost 30 Phase Shifting 15 Evasion (%) 89 Targeting Accuracy 5 Melee Accuracy 10 Target Analysis 6 Core Analysis 8 Armor Integrity Analysis 40 Recoil Reduction 2 Force Boost 20 Offensive Hacking 30 Item Schematics ----------------- Exp. Core Analyzer | -2/Quarantine | Archive Kinetic Spear | -2/Quarantine | Archive Adv. Dynamic Insulation System | -2/Quarantine | Archive Imp. Matter Compressor | -2/Quarantine | Archive Robot Schematics ------------------ None Fabricated ------------ Adv. Terrain Scanner | x2 | -7/Factory Lgt. Fission Core | x2 | -6/Factory S-27 Virus | x4 | -3/Research Exp. Core Analyzer | x1 | -1/Access Alien Tech Used ----------------- Core Reset Matrix Subatomic Replicator Terrabomb Dimensional Node Initializer High-powered Transdimensional Reconstructor Sigix Broadsword Achievements -------------- Alien Roots False Reunion Payload Armed Subspace Traveler Watch This! Challenges ------------ None RPGLIKE | -11 -10 -9 -8 -8 -7 -6 -5 -5 -4 -3 -3 -3 -2 -2 -1 --------- Run | Yrd Mat Mat Mat Sto Fac Fac Fac DSF Fac Res Tes Gar Res Qua Acc Levels Raised 33 | . . 5 3 2 3 1 1 2 3 2 3 1 1 3 3 XP Earned 56427 | 6000 1125 6646 4529 3850 3612 1985 2019 2600 3944 2749 4994 1355 2385 3369 5265 XP Spent 53355 | 2300 1800 7500 3020 4575 4700 1700 . 5180 4550 . 5100 3600 2430 4100 2800 Upgrades 80 | 4 3 15 4 12 5 2 . 10 4 . 6 1 9 1 4 Power Slot 1 | . . . . 1 . . . . . . . . . . . Propulsion Slot 3 | 1 . . 1 . 1 . . . . . . . . . . Utility Slot 9 | 2 . 3 1 1 1 . . . 1 . . . . . . Weapon Slot 3 | 1 . 2 . . . . . . . . . . . . . Core Integrity 8 | . . . . . . . . 8 . . . . . . . Heat Dissipation 5 | . . . . 4 . . . . . . . . 1 . . Energy Generation 5 | . . . . . . . . . 3 . 1 . . . 1 Energy Storage 4 | . . . . . . . . . . . 4 . . . . Matter Storage 8 | . . . . . . . . . . . . . 8 . . Mass Support 9 | . 3 . . . . 1 . 2 . . 1 1 . 1 . Inventory Capacity 2 | . . 1 . . 1 . . . . . . . . . . Sight Range 1 | . . . . . . 1 . . . . . . . . . Sensor Range 11 | . . 8 . 3 . . . . . . . . . . . Terrain Scan Density 6 | . . 1 2 3 . . . . . . . . . . . Melee Accuracy 5 | . . . . . 2 . . . . . . . . . 3 Protomatter Created 4259 | . 81 271 253 453 147 . . 321 398 90 557 304 66 62 1256 Integrity Restored 5769 | . 170 366 177 198 324 . . 723 945 . 1011 561 . . 1294 Core 4660 | . 98 216 106 112 173 . . 723 538 . 1011 561 . . 1122 Parts 1109 | . 72 150 71 86 151 . . . 407 . . . . . 172 Protomatter Decayed 1761 | . 22 158 141 411 33 . . 54 20 . 69 35 . . 818 Game ------ Seed AntigravSpliceWand Manual? 0 Play Time 03:56:38 Cumulative 56.5 hours Start 2024.03.16 @ 20:40:44 End 2024.03.17 @ 14:07:36 Sessions 3 Manual Loads 0 Difficulty Explorer Special Mode Winter2019/RPGLIKE Game No. 58 Rogue 37 Adventurer 20 Explorer 1 Win Type 3 Total 1 Types 0/0/0/1/0/0/0/0/0 Lore% 31 Gallery% 37 Achievement% 44 Wizard Run 0 Options --------- Layout 0 ASCII 0 Keyboard 0 Movement Mouse Keybinds 0 Fullscreen 2 Font 24/Smallcaps Map View 76x50 Zoom Use 0% Tactical HUD 1 Map Filters NONE Filters NONE Steam 1 RUN: 74ce41de-5f5a-4067-a771-d8dd56863740